Cogmind - Beta 9.1 @@@ ROGUE MODE // 2019.11.09 @ 18:34:48 Player: Rilt Result: Destroyed by D-53 Grenadier with Mini Grenade Launcher Performance ------------- Evolutions (0) 0 Regions Visited (2) 400 Robots Destroyed (8) 40 Value Destroyed (156) 156 Prototype IDs (0) 0 Alien Tech Used (0) 0 Bonus (0) 0 TOTAL SCORE: 596 Bonus ------- None Cogmind --------- Core Integrity 0/250 Matter 290/300 Energy 100/100 System Corruption 0% Temperature Cool (0) Location -10/Mines Parts ------- Power (1) Propulsion (2) Light Treads Compact Wheel Utility (2) Small Storage Unit Weapon (2) Inventory (6) Light Ion Engine Light Treads Signal Interpreter Grenade Launcher Grenade Launcher Peak State ------------ Power Ion Engine Propulsion Wheel Compact Wheel Utility Small Storage Unit Weapon EM Pulse Gun Light Assault Rifle Inventory Light Ion Engine Light Treads Light Treads [Rating: 6] Favorites ----------- Power Ion Engine Engine Ion Engine Propulsion Compact Wheel Treads Light Treads Wheel Compact Wheel Utility Small Storage Unit Storage Small Storage Unit Weapon Light Assault Rifle Energy Gun EM Pulse Gun Ballistic Gun Light Assault Rifle Launcher Grenade Launcher Build | -11 -10 -10 ------- Run | Scr Mat Min Slots Evolved . | . . . Power . | . . . Propulsion . | . . . Utility . | . . . Weapon . | . . . Parts Attached 11 | 8 2 1 Power 2 | 2 . . Engine 2 | 2 . . Core . | . . . Reactor . | . . . Propulsion 3 | 2 . 1 Treads 1 | . . 1 Leg . | . . . Wheel 2 | 2 . . Hover . | . . . Flight . | . . . Utility 1 | 1 . . Device . | . . . Storage 1 | 1 . . Processor . | . . . Hackware . | . . . Protection . | . . . Artifact . | . . . Weapon 5 | 3 2 . Energy Gun 1 | 1 . . Energy Cannon . | . . . Ballistic Gun 3 | 2 1 . Ballistic Cannon . | . . . Launcher 1 | . 1 . Special Weapon . | . . . Impact Weapon . | . . . Slashing Weapon . | . . . Piercing Weapon . | . . . Special Melee Weapon . | . . . Unidentified Prototypes . | . . . Parts Lost 4 | . . 4 Power 1 | . . 1 Propulsion 1 | . . 1 Utility . | . . . Weapon 2 | . . 2 Highest Loss Streak 4 | . . 4 Average Slot Usage (%) 81 | . 85 79 Engine 13 | . 14 12 Wheel 27 | . 28 26 Storage 14 | . 14 14 Ballistic Gun 25 | . 24 25 Launcher 1 | . 3 . Naked Turns . | . . . Heaviest Build 14 | 12 14 12 Greatest Support 26 | 26 26 26 Greatest Overweight (x) . | . . . Average Overweight (x) . | . . . Largest Inventory Capacity 6 | 6 6 6 Average Capacity 5 | 5 6 6 Most Carried 6 | 4 6 6 Average Carried 5 | 2 5 5 Final Capacity 6 | 6 6 6 Final Carried 6 | 4 6 5 Class Distribution -------------------- 100% | Mutant Dominant Class ---------------- Mutant | -10/Materials Mutant | -10/Mines Resources | -11 -10 -10 ----------- Run | Scr Mat Min Matter Collected 422 | 246 167 9 Remotely . | . . . Salvage Created 230 | . 182 48 Parts 17 | . 9 8 Haulers Intercepted . | . . . Recyclers Shooed 1 | . 1 . Parts Field Recycled . | . . . Retrieved Matter . | . . . Parts Self-Destructed . | . . . Prevented . | . . . Kills | -11 -10 -10 ------- Run | Scr Mat Min Combat Hostiles Destroyed 5 | . 2 3 Guns 4 | . 1 3 AOE 1 | . 1 . Classes Destroyed 5 | . 4 1 Recycler 1 | . 1 . Mechanic 1 | . 1 . Watcher 1 | . 1 . Swarmer 3 | . . 3 Grunt 2 | . 2 . Best Kill Streak 3 | . 3 3 Combat Bots Only 3 | . 1 3 Max Kills in Single Turn 2 | . 2 1 Gunslinging . | . . . Exploded 1 | . 1 . Melee . | . . . Uniques/NPCs Destroyed . | . . . Combat | -11 -10 -10 -------- Run | Scr Mat Min Damage Taken 696 | . 211 485 Core 267 | . 44 223 Absorbed by Shields . | . . . Core Remaining (%) 100 | 100 . . Volleys Fired 30 | . 18 12 Largest 2 | . 2 2 Hottest 50 | . 50 40 Shots Fired 48 | . 32 16 Gun 43 | . 27 16 Cannon . | . . . Launcher 5 | . 5 . Special . | . . . Kinetic 43 | . 27 16 Thermal . | . . . Explosive 5 | . 5 . Electromagnetic . | . . . Robot Hit Streak 4 | . 4 4 Robot Miss Streak 3 | . 2 3 Penetration Max . | . . . Secondary Targets 1 | . . 1 Max Gunslinging Chain 1 | . . 1 Shots Hit Robots 28 | . 19 9 Core Hits 16 | . 12 4 Critical Hits . | . . . Critical Kills . | . . . Critical Parts Destroyed . | . . . Melee Attacks . | . . . Impact . | . . . Slashing . | . . . Piercing . | . . . Sneak Attacks . | . . . Combat Hostiles . | . . . Follow-up Attacks . | . . . Damage Inflicted 686 | . 597 89 Guns 298 | . 219 79 Cannons . | . . . Explosions 378 | . 378 . Melee . | . . . Ramming 10 | . . 10 Kinetic 298 | . 219 79 Thermal . | . . . Explosive 378 | . 378 . Electromagnetic . | . . . Impact . | . . . Slashing . | . . . Piercing . | . . . Highest Corruption . | . . . Average Corruption . | . . . Corruption Purged . | . . . Overload Shots . | . . . Overflow Damage 29 | . 29 . Projectiles . | . . . Explosions 29 | . 29 . Melee . | . . . Knockbacks . | . . . Impact . | . . . Kinetic . | . . . Secondary . | . . . Self-Inflicted Damage 5 | . . 5 Shots . | . . . Rammed 1 | . . 1 Targets Rammed 1 | . . 1 Kicked . | . . . Crushed . | . . . Highest Temperature 18 | . 18 . Average Temperature 8 | . 8 . Received Heat Transfer 117 | . 117 . Siege Activations . | . . . Robots Corrupted . | . . . Combat Hostiles . | . . . Parts Fried . | . . . Impact Corruptions . | . . . Robots Melted . | . . . Combat Hostiles . | . . . Parts Melted . | . . . Heat Transferred . | . . . Parts Sabotaged . | . . . Parts Stolen . | . . . Parts Stripped . | . . . Power Chain Reactions . | . . . Missiles Intercepted . | . . . Alert | -11 -10 -10 ------- Run | Scr Mat Min Peak Influence 97 | . 97 77 Average Influence 35 | . 41 42 Maximum Alert Level . | . . . Low Security (%) 100 | . . . Level 1 . | . . . Level 2 . | . . . Level 3 . | . . . Level 4 . | . . . Level 5 . | . . . High Security . | . . . Max Security . | . . . Squads Dispatched . | . . . Investigation . | . . . Extermination . | . . . Reinforcement . | . . . Assault . | . . . Garrison . | . . . Intercept . | . . . Construction Impeded . | . . . Haulers Reinforced . | . . . Stealth | -11 -10 -10 --------- Run | Scr Mat Min Distress Signals . | . . . Communications Jammed . | . . . Distress Signals . | . . . Times Spotted 12 | . 6 6 Peak Tracking Total 8 | . 3 8 Tactical Retreats 2 | . 2 . Traps | -11 -10 -10 ------- Run | Scr Mat Min Traps Triggered . | . . . Indirectly . | . . . Trap Hack Attempts . | . . . Triggered . | . . . Disarmed . | . . . Reprogrammed . | . . . Reused . | . . . Traps Extracted . | . . . Installed . | . . . Triggered 1 | . . 1 Machines | -11 -10 -10 ---------- Run | Scr Mat Min Machines Disabled 1 | . 1 . Max in Single Turn 1 | . 1 . Machines Sabotaged . | . . . Garrisons Compromised . | . . . Overloaded Fab Kills . | . . . Fab Network Shutdowns . | . . . Hacking | -11 -10 -10 --------- Run | Scr Mat Min Machines Accessed . | . . . Terminals . | . . . Fabricators . | . . . Repair Stations . | . . . Recycling Units . | . . . Scanalyzers . | . . . Garrison Access . | . . . Total Hacks . | . . . Successful . | . . . Failed . | . . . Catastrophic . | . . . Database Lockouts . | . . . Manual . | . . . Terminals . | . . . Fabricators . | . . . Repair Stations . | . . . Recycling Units . | . . . Scanalyzers . | . . . Garrison Access . | . . . Terminal Hacks . | . . . Fabricator Hacks . | . . . Repair Station Hacks . | . . . Recycling Unit Hacks . | . . . Scanalyzer . | . . . Garrison Access Hacks . | . . . Unauthorized Hacks . | . . . Terminals . | . . . Fabricators . | . . . Repair Stations . | . . . Recycling Units . | . . . Scanalyzers . | . . . Garrison Access . | . . . Data Cores Recovered . | . . . Used . | . . . Hacking Detections . | . . . Full Trace Events . | . . . Feedback Events . | . . . Feedback Blocked . | . . . Robot Schematics Acquired . | . . . Robots Built . | . . . Matter . | . . . Time . | . . . Total Robot Build Rating . | . . . Part Schematics Acquired . | . . . Parts Built . | . . . Matter . | . . . Time . | . . . Total Part Build Rating . | . . . Parts Repaired . | . . . Time . | . . . Parts Recycled . | . . . Recycled Matter . | . . . Retrieved Matter . | . . . Retrieved Components . | . . . Parts Scanalyzed . | . . . Part Schematics Acquired . | . . . Parts Damaged . | . . . Bothacking | -11 -10 -10 ------------ Run | Scr Mat Min Used RIF Installer . | . . . Robots Hacked . | . . . Non-combat . | . . . Combat . | . . . Robot Hacks Applied . | . . . Relay Couplers Released . | . . . Robots Rewired . | . . . Allies Hacked . | . . . Hacks Repelled . | . . . Allies | -11 -10 -10 -------- Run | Scr Mat Min Total Allies . | . . . Largest Group . | . . . Highest-Rated Group . | . . . Highest-Rated Ally . | . . . Total Orders . | . . . Ally Attacks . | . . . Total Damage . | . . . Kills . | . . . Allies Corrupted . | . . . Allies Melted . | . . . Intel | -11 -10 -10 ------- Run | Scr Mat Min Robot Analysis Total . | . . . Derelict Logs Recovered 1 | . . 1 Drone Launches . | . . . Drone Recoveries . | . . . Exploration | -11 -10 -10 ------------- Run | Scr Mat Min Turns Passed 507 | 73 192 242 Spaces Moved 443 | 66 153 224 Core 12 | 12 . . Treads 4 | . . 4 Legs . | . . . Wheels 427 | 54 153 220 Hover . | . . . Flight . | . . . Fastest Speed 50 | 50 90 90 Average Speed 89 | 82 90 92 Slowest Speed 160 | 90 90 160 Overloaded Moves . | . . . Propulsion Burnouts . | . . . Robots Hopped . | . . . Cave-ins Triggered . | . . . Exploration Rate (%) 29 | 5 32 51 Regions Visited 2 Branch Regions 1 Pre-discovered Areas . | . . . Known Exits Taken . | . . . Unknown Exits Taken 2 | 1 1 . Scrap Searched . | . . . Spaces Dug . | . . . Terrain Destroyed 9 | . 9 . Melee . | . . . Projectile . | . . . AOE 9 | . 9 . Actions | -11 -10 -10 --------- Run | Scr Mat Min Total 505 | 83 176 246 Wait 8 | . . 8 Move 441 | 65 152 224 Hop . | . . . Pick Up 13 | 10 3 . Fast Attach . | . . . Attach 7 | 6 . 1 Detach . | . . . Swap 4 | 2 2 . Drop 1 | . 1 . Fire 30 | . 18 12 Melee . | . . . Ram 1 | . . 1 Kick . | . . . Crush . | . . . Escape Stasis . | . . . Rewire . | . . . Trap . | . . . Miscellaneous . | . . . Route ------- -11/Scrapyard -10/Materials -10/Mines (discovered 2 exits: [*Mat x2]) History --------- Turn | Location | Event 19 | -11/Scrapyard | Discovered new exit (range 15) 74 | -11/Scrapyard | Entered Materials 209 | -10/Materials | Discovered new exit (range 12) 266 | -10/Materials | Entered Mines 297 | -10/Mines | Discovered new exit (range 11) 310 | -10/Mines | Build established: Mutant 401 | -10/Mines | Discovered new exit (range 6) 402 | -10/Mines | Learned Materials stockpile data 486 | -10/Mines | Assembled infested the area 501 | -10/Mines | Core integrity fell below 50% 505 | -10/Mines | Core integrity fell below 20% 508 | -10/Mines | Destroyed by D-53 Grenadier with Mini Grenade Launcher Last Messages --------------- Wheel destroyed. R-06 Scavenger collects Flight Unit. K-01 Serf collects debris. Ion Engine destroyed. R-06 Scavenger collects Flight Unit. K-01 Serf collects debris. S-10 Pest destroyed. R-06 Scavenger collects Lgt. Assault Rifle. R-06 Scavenger collects Flight Unit. K-01 Serf collects debris. Acquired 9 matter. ALERT: Infestation in the mines, dispatching Demolisher response squad. K-01 Serf collects debris. R-06 Scavenger system corrupted by crushing effect. R-06 Scavenger knocked back. C-30 ARC bursts open, deploying its payload. D-53 Grenadier unfolds itself. Lgt. Assault Rifle destroyed. U-05 Engineer builds a Wall. Map ----- +----------------------------------------------------+ | ???# ##???### #####??????## #???? | | ???# #?????####???????????# ## ### #???? | | ??## #?????????########???# ### ##??????? | | ?## #?????????# #???# ### #??????? | | ## ##????????# #???# ## #??????? | | # ##???????# #???# #?# ##??????? | | # #???????# < #???###### #??###???????? | | ## ##??????# #????????# #????????????? | | ?##### ##?????# #????????# #????????????? | | ?????## ###???# #????????# #????????????? | | ??????# ##??## ############?# #????????????? | | ??????## ##### ##### ^ #?# #????????????? | | ???????# # #?# #????????????? | | ???????# ## ######### " #?# #????????????? | | ???????# ### #??????#"%" ### #????????????? | | ???????# #?# #??????#" %"" ### #????????????? | | ???????## #### #??????#" % "## #????????????? | | ????????###### "##?????##"###%#### #????????????? | | ????????????# "%"##?????##;## #### #????????????? | | ????????????# " ##???## u ####?????????? | | ????????????# #???# #?????????? | | ????????????## ##??# ### ## #?????????? | | ??????##?????## #### ##?# #??#?????????? | | ??????? ?????## d # ##?# #????????????? | | ???????? ?????# #?## ##????????????? | | ?????????# ????# @ #???####?????????????? | | ?????????# #### #????????????????????? | | ?????????# #????????????????????? | | ?????????# #????????????????????? | | ?????????###### #????????????????????? | | ????????## #?## ##????????????????????? | | ????????# ## r ####?????????????????????? | | ????????# #######????????????????????????? | | ????????# #??????????????????????????????? | | ????????# ##?????????????????????????????? | | ????????## ##????????????????????????????? | | ?????????## #????????????????????????????? | | ?????????## #????????????????????????????? | | ????????## [ ##????????????????????????????? | | ???# ## %#####?????????????????????????????? | | ????# %*#?????????????????????????????????? | | ????# ### %#?????????????????????????????????? | | ? ## = ????????????????????????????????? | | #?# ??????????????????????????????? | | ########??# ????????????????????????????? | | ??????????# """ """ ""??????????????????????????? | | ??????????# """ """ """?????????????????????????? | | ??????????# """ """ """?????????????????????????? | | ??????????# ??????????????????????????? | | ??????????# """ """?????????????????????????????? | +----------------------------------------------------+ Best States ------------- Heat Dissipation 25 Energy Generation 10 Energy Capacity 250 Matter Stores 300 Matter Capacity 300 Sight Range 16 Terrain Scan Density 10 Evasion (%) 50 Item Schematics ----------------- None Robot Schematics ------------------ None Fabricated ------------ Nothing Alien Tech Used ----------------- None Achievements -------------- None Challenges ------------ None Game ------ Seed VortexMiniManipulator Manual? 0 Play Time 00:06:51 Cumulative 4.7 hours Start 2019.11.09 @ 18:29:46 End 2019.11.09 @ 18:34:48 Sessions 1 Manual Loads 0 Difficulty Rogue Special Mode None Game No. 9 Rogue 9 Adventurer 0 Explorer 0 Win Type - Total 0 Types 0/0/0/0/0/0/0 Lore% 12 Gallery% 11 Achievement% 11 Wizard Run 0 Options --------- ASCII 0 Keyboard 0 Movement Mouse Keybinds 0 Fullscreen 1 Font 20/SmallcapsGlow Map View 66x50 Tactical HUD 0 Map Filters NONE Filters NONE Steam 1 RUN: 2a3a1d58-7a05-4e7f-8569-9f38bba74368